[Event "Open NK Rapid 2025 bord 26-50"]
[Site "Helmond, Netherlands"]
[Date "2025.05.03"]
[Round "9.24"]
[White "Drager, Jason"]
[Black "De Oude, Sybe"]
[Result "0-1"]
[TimeControl "15 min +5 sec increment"]
[WhiteFideId "40111016"]
[BlackFideId "40110052"]
[WhiteElo "1488"]
[BlackElo "1914"]

1. d4 {[%clk 00:15:08]} {[%emt 00:00:02]} f5 {[%clk 00:15:08]} {[%emt
00:00:03]} 2. e4 {[%clk 00:15:11]} e6 {[%clk 00:15:01]} {[%emt 00:00:13]} 3.
Bd3 {[%clk 00:15:10]} {[%emt 00:00:05]} fxe4 {[%clk 00:14:53]} {[%emt
00:00:13]} 4. Bxe4 {[%clk 00:15:09]} {[%emt 00:00:06]} Nf6 {[%clk 00:14:57]}
{[%emt 00:00:02]} 5. Nc3 {[%clk 00:14:58]} {[%emt 00:00:16]} Be7 {[%clk
00:14:38]} {[%emt 00:00:24]} 6. Bg5 {[%clk 00:14:38]} {[%emt 00:00:24]} Nxe4
{[%clk 00:13:02]} {[%emt 00:01:41]} 7. Bxe7 {[%clk 00:14:12]} {[%emt 00:00:31]}
Nxc3 {[%clk 00:12:42]} {[%emt 00:00:26]} 8. Qh5+ {[%clk 00:13:42]} {[%emt
00:00:34]} Kxe7 {[%clk 00:10:41]} {[%emt 00:02:06]} 9. Qc5+ {[%clk 00:13:29]}
{[%emt 00:00:18]} d6 {[%clk 00:10:36]} {[%emt 00:00:10]} 10. Qxc3 {[%clk
00:13:32]} {[%emt 00:00:02]} Nc6 {[%clk 00:10:10]} {[%emt 00:00:31]} 11. Qg3
{[%clk 00:13:28]} {[%emt 00:00:08]} Qf8 {[%clk 00:10:03]} {[%emt 00:00:13]} 12.
O-O-O {[%clk 00:13:24]} {[%emt 00:00:10]} Qf6 {[%clk 00:09:41]} {[%emt
00:00:27]} 13. d5 {[%clk 00:13:00]} {[%emt 00:00:28]} exd5 {[%clk 00:09:14]}
{[%emt 00:00:32]} 14. Rxd5 {[%clk 00:12:50]} {[%emt 00:00:15]} Be6 {[%clk
00:08:52]} {[%emt 00:00:28]} 15. Rg5 {[%clk 00:12:03]} {[%emt 00:00:51]} g6
{[%clk 00:08:41]} {[%emt 00:00:16]} 16. Nf3 {[%clk 00:11:38]} {[%emt 00:00:30]}
Rhf8 {[%clk 00:08:22]} {[%emt 00:00:25]} 17. Re1 {[%clk 00:11:16]} {[%emt
00:00:26]} Qf4+ {[%clk 00:08:08]} {[%emt 00:00:19]} 18. Kb1 {[%clk 00:10:06]}
{[%emt 00:01:16]} Qxg3 {[%clk 00:07:16]} {[%emt 00:00:56]} 19. Rxg3 {[%clk
00:09:57]} {[%emt 00:00:14]} Rf5 {[%clk 00:06:15]} {[%emt 00:01:07]} 20. Ng5
{[%clk 00:09:38]} {[%emt 00:00:23]} Re5 {[%clk 00:06:17]} {[%emt 00:00:04]} 21.
Rge3 {[%clk 00:09:19]} {[%emt 00:00:23]} Rxg5 {[%clk 00:05:51]} {[%emt
00:00:32]} 22. Rxe6+ {[%clk 00:09:19]} {[%emt 00:00:04]} Kf7 {[%clk 00:05:34]}
{[%emt 00:00:23]} 23. g3 {[%clk 00:08:48]} {[%emt 00:00:36]} Re5 {[%clk
00:05:30]} {[%emt 00:00:08]} 24. R6xe5 {[%clk 00:08:51]} {[%emt 00:00:02]} Nxe5
{[%clk 00:05:32]} {[%emt 00:00:03]} 25. f4 {[%clk 00:08:53]} {[%emt 00:00:04]}
Nc6 {[%clk 00:05:33]} {[%emt 00:00:04]} 26. c3 {[%clk 00:08:49]} {[%emt
00:00:09]} Re8 {[%clk 00:05:36]} {[%emt 00:00:02]} 27. Rf1 {[%clk 00:08:52]}
{[%emt 00:00:01]} Re2 {[%clk 00:05:35]} {[%emt 00:00:07]} 28. h4 {[%clk
00:08:52]} {[%emt 00:00:05]} Rg2 {[%emt 00:00:19]} 29. Rf3 {[%clk 00:08:55]}
Kf6 {[%clk 00:05:19]} {[%emt 00:00:08]} 30. a4 {[%clk 00:08:27]} {[%emt
00:00:34]} Kf5 {[%clk 00:05:13]} {[%emt 00:00:10]} 31. Rd3 {[%clk 00:08:21]}
{[%emt 00:00:11]} Ke4 {[%clk 00:05:06]} {[%emt 00:00:12]} 32. Rd1 {[%clk
00:08:16]} {[%emt 00:00:11]} Rxg3 {[%clk 00:05:06]} {[%emt 00:00:04]} 33. Re1+
{[%clk 00:07:54]} {[%emt 00:00:27]} Kxf4 {[%clk 00:05:07]} {[%emt 00:00:02]}
0-1

[Event "Open NK Rapid 2025 bord 26-50"]
[Site "Helmond, Netherlands"]
[Date "2025.05.03"]
[Round "9.25"]
[White "SuiÃ§mez, Alkan"]
[Black "Van Ree, Thailo"]
[Result "0-1"]
[TimeControl "15 min +5 sec increment"]
[WhiteFideId "40109909"]
[BlackFideId "40102181"]
[WhiteElo "1615"]
[BlackElo "1877"]

1. d4 {[%clk 00:15:07]} {[%emt 00:00:03]} Nf6 {[%clk 00:15:08]} {[%emt
00:00:02]} 2. c4 {[%clk 00:15:11]} Nc6 {[%clk 00:15:11]} {[%emt 00:00:02]} 3.
Nf3 {[%clk 00:14:57]} {[%emt 00:00:19]} e6 {[%clk 00:15:11]} {[%emt 00:00:05]}
4. Bg5 {[%clk 00:14:53]} {[%emt 00:00:09]} Bb4+ {[%clk 00:14:48]} {[%emt
00:00:28]} 5. Nc3 {[%clk 00:14:56]} {[%emt 00:00:02]} h6 {[%clk 00:14:44]}
{[%emt 00:00:09]} 6. Bxf6 {[%clk 00:14:50]} {[%emt 00:00:12]} Bxc3+ {[%clk
00:14:24]} {[%emt 00:00:25]} 7. bxc3 {[%clk 00:14:54]} {[%emt 00:00:01]} Qxf6
{[%clk 00:14:21]} {[%emt 00:00:08]} 8. e4 {[%clk 00:14:40]} {[%emt 00:00:19]}
e5 {[%clk 00:14:14]} {[%emt 00:00:12]} 9. Be2 {[%clk 00:13:49]} {[%emt
00:00:55]} O-O {[%clk 00:14:13]} {[%emt 00:00:05]} 10. O-O {[%clk 00:13:52]}
{[%emt 00:00:03]} d6 {[%clk 00:14:07]} {[%emt 00:00:11]} 11. a4 {[%clk
00:12:58]} {[%emt 00:00:59]} Bg4 {[%clk 00:13:34]} {[%emt 00:00:38]} 12. d5
{[%clk 00:12:59]} {[%emt 00:00:04]} Na5 {[%clk 00:12:30]} {[%emt 00:01:09]} 13.
Qd3 {[%clk 00:12:26]} {[%emt 00:00:38]} Bxf3 {[%clk 00:12:03]} {[%emt
00:00:32]} 14. Bxf3 {[%clk 00:12:27]} {[%emt 00:00:04]} b6 {[%clk 00:12:02]}
{[%emt 00:00:05]} 15. Rfe1 {[%clk 00:10:30]} {[%emt 00:02:03]} Nb3 {[%clk
00:11:58]} {[%emt 00:00:09]} 16. Ra3 {[%clk 00:10:06]} {[%emt 00:00:28]} Nc5
{[%clk 00:12:00]} {[%emt 00:00:03]} 17. Qc2 {[%clk 00:09:26]} {[%emt 00:00:46]}
a5 {[%clk 00:12:01]} {[%emt 00:00:04]} 18. Re3 {[%clk 00:08:59]} {[%emt
00:00:31]} Qg6 {[%clk 00:11:39]} {[%emt 00:00:28]} 19. Be2 {[%clk 00:08:25]}
{[%emt 00:00:38]} f5 {[%clk 00:11:24]} {[%emt 00:00:21]} 20. Rg3 {[%clk
00:07:39]} {[%emt 00:00:51]} Qf6 {[%clk 00:11:18]} {[%emt 00:00:10]} 21. exf5
{[%clk 00:04:54]} {[%emt 00:02:51]} Qxf5 {[%clk 00:11:18]} {[%emt 00:00:05]} 22.
Qxf5 {[%clk 00:04:47]} {[%emt 00:00:12]} Rxf5 {[%clk 00:11:21]} {[%emt
00:00:02]} 23. Bg4 {[%clk 00:03:34]} {[%emt 00:01:17]} Rf4 {[%clk 00:11:16]}
{[%emt 00:00:11]} 24. Be2 {[%clk 00:02:55]} {[%emt 00:00:44]} Raf8 {[%clk
00:10:36]} {[%emt 00:00:45]} 25. Rf3 {[%clk 00:02:15]} {[%emt 00:00:45]} Ne4
{[%clk 00:07:54]} {[%emt 00:02:47]} 26. Rxf4 {[%clk 00:01:59]} {[%emt
00:00:22]} Rxf4 {[%clk 00:07:57]} {[%emt 00:00:01]} 27. f3 {[%clk 00:01:23]}
{[%emt 00:00:41]} Nd2 {[%clk 00:05:55]} {[%emt 00:02:07]} 28. c5 {[%clk
00:01:17]} {[%emt 00:00:11]} bxc5 {[%clk 00:04:40]} {[%emt 00:01:19]} 29. Ra2
{[%clk 00:00:55]} {[%emt 00:00:27]} Nb3 {[%clk 00:04:32]} {[%emt 00:00:14]} 30.
g3 {[%clk 00:00:42]} {[%emt 00:00:18]} Nc1 {[%clk 00:04:15]} {[%emt 00:00:22]}
31. gxf4 {[%clk 00:00:35]} {[%emt 00:00:12]} Nxa2 {[%clk 00:04:18]} {[%emt
00:00:02]} 32. c4 {[%clk 00:00:19]} {[%emt 00:00:21]} exf4 {[%clk 00:04:19]}
{[%emt 00:00:04]} 33. Kf2 {[%clk 00:00:09]} {[%emt 00:00:14]} Nc3 {[%clk
00:04:19]} {[%emt 00:00:05]} 34. Bd3 {[%clk 00:00:08]} {[%emt 00:00:07]} Nxa4
{[%clk 00:04:21]} {[%emt 00:00:03]} 35. Bc2 {[%clk 00:00:09]} {[%emt 00:00:04]}
Nb6 {[%clk 00:04:25]} 36. Bd3 {[%clk 00:00:08]} {[%emt 00:00:06]} a4 {[%clk
00:04:26]} {[%emt 00:00:04]} 37. Bb1 {[%clk 00:00:07]} {[%emt 00:00:06]} Nxc4
{[%clk 00:04:26]} {[%emt 00:00:05]} 38. Ke2 {[%clk 00:00:08]} {[%emt 00:00:04]}
Kf7 {[%clk 00:04:23]} {[%emt 00:00:08]} 39. Kd3 {[%clk 00:00:11]} {[%emt
00:00:02]} Ne5+ {[%clk 00:04:20]} {[%emt 00:00:07]} 40. Ke4 {[%clk 00:00:14]}
{[%emt 00:00:03]} g5 {[%clk 00:04:19]} {[%emt 00:00:05]} 41. Kf5 {[%clk
00:00:15]} {[%emt 00:00:04]} Nxf3 {[%clk 00:04:19]} {[%emt 00:00:06]} 0-1